Cogmind - Beta 13 @@@ ROGUE MODE // 2024.07.07 @ 19:58:02 Player: Evel Wyn Result: Self-destructed Performance ------------- Evolutions (1) 500 Regions Visited (2) 400 Robots Destroyed (24) 120 Value Destroyed (373) 373 Prototype IDs (4) 80 Alien Tech Used (0) 0 Bonus (0) 0 TOTAL SCORE: 1473 Bonus ------- None Cogmind --------- Core Integrity 220/400 Matter 123/300 Energy 125/250 System Corruption 5% Temperature Cool (0) Movement Walking (130) Location -9/Materials Parts ------- > --- POWER (1) -------- Ion Engine > --- PROPULSION (3) --- Titanium Leg Titanium Leg Titanium Leg > --- UTILITY (3) ------ Core Shielding Improved Utility Shielding > --- WEAPON (2) ------- EM Pulse Cannon > --- INVENTORY (5) ---- Titanium Leg High-capacity Battery (250) High-capacity Matter Pod (157) Peak State ------------ > --- POWER ------------ Light Ion Engine > --- PROPULSION ------- Titanium Leg Titanium Leg Titanium Leg > --- UTILITY ---------- ECM Suite Light Armor Plating Hacking Suite > --- WEAPON ----------- EM Pulse Cannon Mining Laser > --- INVENTORY -------- Titanium Leg High-capacity Battery High-capacity Matter Pod Core Shielding [Rating: 19] Favorites ----------- Power Light Ion Engine Engine Light Ion Engine Propulsion Flight Unit Leg Aluminum Leg Wheel Wheel Hover Unit Hover Unit Flight Unit Flight Unit Utility ECM Suite Device ECM Suite Storage High-capacity Battery Hackware Hacking Suite Protection Core Shielding Weapon Light Assault Rifle Energy Gun Small Laser Energy Cannon EM Pulse Cannon Ballistic Gun Light Assault Rifle Special Weapon Mining Laser Build | -11 -10 -9 ------- Run | Yrd Mat Mat Slots Evolved 2 | . . 2 Power . | . . . Propulsion 1 | . . 1 Utility 1 | . . 1 Weapon . | . . . Parts Attached 38 | 9 17 12 Power 4 | 2 1 1 Engine 4 | 2 1 1 Core . | . . . Reactor . | . . . Propulsion 11 | 4 3 4 Treads . | . . . Leg 5 | 2 . 3 Wheel 2 | 2 . . Hover 1 | . . 1 Flight 3 | . 3 . Utility 14 | . 8 6 Device 5 | . 5 . Storage 1 | . . 1 Processor . | . . . Hackware 1 | . 1 . Protection 7 | . 2 5 Artifact . | . . . Weapon 9 | 3 5 1 Energy Gun 1 | 1 . . Energy Cannon 1 | . . 1 Ballistic Gun 5 | 1 4 . Ballistic Cannon . | . . . Launcher . | . . . Special Weapon 2 | 1 1 . Impact Weapon . | . . . Slashing Weapon . | . . . Piercing Weapon . | . . . Special Melee Weapon . | . . . Unidentified Prototypes . | . . . Parts Lost 4 | . . 4 Power . | . . . Propulsion . | . . . Utility 3 | . . 3 Weapon 1 | . . 1 Highest Loss Streak 3 | . . 3 To Critical Strikes . | . . . Average Slot Usage (%) 93 | . 96 84 Engine 13 | . 14 11 Leg 14 | . 10 24 Flight 14 | . 17 5 Device 15 | . 19 4 Hackware 3 | . 3 4 Protection 7 | . 2 17 Energy Gun 2 | . 3 . Energy Cannon 2 | . . 7 Ballistic Gun 15 | . 19 3 Special Weapon 4 | . 4 4 Naked Turns . | . . . Heaviest Build 17 | 8 11 17 Greatest Support 51 | 20 20 51 Greatest Overweight (x) . | . . . Average Overweight (x) . | . . . Largest Inventory Capacity 5 | 5 5 5 Average Capacity 5 | 5 5 5 Most Carried 5 | 3 5 5 Average Carried 3 | 1 3 3 Final Capacity 5 | 5 5 5 Final Carried 5 | 2 5 3 Class Distribution -------------------- 44% | Scavenger-Mutant 37% | Mutant 18% | Infiltrator-Mutant Dominant Class ---------------- Scavenger-Mutant | -10/Materials Mutant | -9/Materials Resources | -11 -10 -9 ----------- Run | Yrd Mat Mat Matter Collected 682 | 308 374 . Remotely . | . . . Salvage Created 446 | 50 184 212 Parts 46 | 4 27 15 Haulers Intercepted . | . . . Recyclers Shooed 1 | . 1 . Parts Field Recycled . | . . . Retrieved Matter . | . . . Parts Self-Destructed . | . . . Prevented . | . . . Kills | -11 -10 -9 ------- Run | Yrd Mat Mat Combat Hostiles Destroyed 16 | 1 9 6 Guns 10 | 1 9 . Cannons 2 | . . 2 AOE 4 | . . 4 Classes Destroyed 7 | 2 3 2 Worker 1 | . . 1 Tunneler 1 | 1 . . Recycler 1 | . . 1 Operator 1 | . 1 . Watcher 4 | . 3 1 Swarmer 12 | . 9 3 Grunt 4 | 1 . 3 Best Kill Streak 5 | 2 3 5 Combat Bots Only 4 | 1 3 4 Max Kills in Single Turn 3 | 1 1 3 Gunslinging . | . . . Exploded 3 | . . 3 Melee . | . . . Uniques/NPCs Destroyed . | . . . Combat | -11 -10 -9 -------- Run | Yrd Mat Mat Hostile Shots Fired 112 | 9 44 59 Missed 36 | 3 11 22 Damage Taken 1117 | 71 268 778 Core 306 | 35 91 180 Absorbed by Shields . | . . . Redirected to Shielding 9 | . . 9 Core Remaining (%) 67 | 86 49 . Volleys Fired 73 | 10 45 18 Largest 2 | 2 2 1 Hottest 140 | 140 100 100 Shots Fired 127 | 20 89 18 Gun 104 | 16 88 . Cannon 14 | . . 14 Launcher . | . . . Special 9 | 4 1 4 Kinetic 94 | 6 88 . Thermal 19 | 14 1 4 Explosive . | . . . Electromagnetic 14 | . . 14 Robot Hit Streak 4 | 3 4 4 Robot Miss Streak 5 | 2 5 3 Penetration Max . | . . . Secondary Targets 1 | . 1 . Max Gunslinging Chain 1 | . 1 . Shots Hit Robots 49 | 8 34 7 Core Hits 36 | 3 21 12 Critical Kills . | . . . Critical Parts Destroyed . | . . . Critical Strikes . | . . . Melee Attacks . | . . . Impact . | . . . Slashing . | . . . Piercing . | . . . Sneak Attacks . | . . . Combat Hostiles . | . . . Follow-up Attacks . | . . . Damage Inflicted 1020 | 105 356 559 Guns 461 | 105 356 . Cannons 185 | . . 185 Explosions 374 | . . 374 Melee . | . . . Ramming . | . . . Kinetic 407 | 51 356 . Thermal 199 | 54 . 145 Explosive 229 | . . 229 Electromagnetic 185 | . . 185 Impact . | . . . Slashing . | . . . Piercing . | . . . Highest Corruption 5 | . . 5 Average Corruption 4 | . . 4 Corruption Purged . | . . . Corruption Blocked . | . . . Effects 3 | . . 3 Energy Discharges 1 | . . 1 Data Loss (minor) 1 | . . 1 Data Loss (major) 1 | . . 1 Overload Shots . | . . . Overflow Damage 3 | . . 3 Projectiles 3 | . . 3 Explosions . | . . . Melee . | . . . Knockbacks . | . . . Impact . | . . . Kinetic . | . . . Secondary . | . . . Self-Inflicted Damage 142 | . . 142 Shots 2 | . . 2 Rammed . | . . . Targets Rammed . | . . . Kicked . | . . . Crushed . | . . . Highest Temperature 142 | 142 30 78 Average Temperature 25 | 53 6 23 Received Heat Transfer 141 | 36 . 105 Siege Activations . | . . . Robots Corrupted . | . . . Combat Hostiles . | . . . Parts Fried 1 | . . 1 Impact Corruptions . | . . . Robots Melted . | . . . Combat Hostiles . | . . . Parts Melted 1 | 1 . . Heat Transferred 275 | 125 . 150 Parts Sabotaged . | . . . Parts Stolen . | . . . Parts Stripped . | . . . Power Chain Reactions 2 | . . 2 Alert | -11 -10 -9 ------- Run | Yrd Mat Mat Peak Influence 343 | 25 334 343 Initial 77 | . 16 77 Average 154 | 16 182 163 Maximum Alert Level 1 | . 1 1 Low Security (%) 59 | 100 45 72 Level 1 40 | . 54 27 Level 2 . | . . . Level 3 . | . . . Level 4 . | . . . Level 5 . | . . . High Security . | . . . Max Security . | . . . Squads Dispatched 4 | . 1 3 Investigation 4 | . 1 3 Extermination . | . . . Reinforcement . | . . . Assault . | . . . Garrison . | . . . Intercept . | . . . Searches Triggered . | . . . Construction Impeded . | . . . Haulers Reinforced . | . . . Active Scanning Responses . | . . . Cargo Convoy Interrupts . | . . . Stealth | -11 -10 -9 --------- Run | Yrd Mat Mat Distress Signals 3 | . 2 1 Communications Jammed . | . . . Distress Signals . | . . . Times Spotted 44 | 1 27 16 Peak Tracking Total 8 | 1 4 8 Tactical Retreats 8 | . 3 5 Traps | -11 -10 -9 ------- Run | Yrd Mat Mat Traps Triggered 1 | . . 1 Indirectly . | . . . Trap Hack Attempts . | . . . Triggered . | . . . Disarmed . | . . . Reprogrammed . | . . . Reused . | . . . Traps Extracted . | . . . Installed . | . . . Triggered . | . . . Machines | -11 -10 -9 ---------- Run | Yrd Mat Mat Machines Disabled 1 | . . 1 Max in Single Turn 1 | . . 1 Machines Repaired . | . . . Machines Dismantled . | . . . Machines Sabotaged . | . . . Overloaded Fab Kills . | . . . Hacking | -11 -10 -9 --------- Run | Yrd Mat Mat Machines Accessed 10 | . 7 3 Terminals 9 | . 6 3 Fabricators . | . . . Repair Stations 1 | . 1 . Recycling Units . | . . . Scanalyzers . | . . . Garrison Access . | . . . Total Hacks 36 | . 27 9 Successful 20 | . 16 4 Failed 15 | . 11 4 Catastrophic . | . . . Database Lockouts 1 | . . 1 Manual . | . . . Terminals 35 | . 26 9 Fabricators . | . . . Repair Stations 1 | . 1 . Recycling Units . | . . . Scanalyzers . | . . . Garrison Access . | . . . Terminal Hacks 19 | . 15 4 Record 9 | . 6 3 Prototype ID Bank 3 | . 3 . Branch Access Points 1 | . . 1 Emergency Access Points 1 | . 1 . Alert Level 2 | . 2 . Maintenance Status 2 | . 2 . Zone Layout 1 | . 1 . Fabricator Hacks . | . . . Repair Station Hacks 1 | . 1 . Scan Component 1 | . 1 . Recycling Unit Hacks . | . . . Scanalyzer . | . . . Garrison Access Hacks . | . . . Unauthorized Hacks . | . . . Terminals . | . . . Fabricators . | . . . Repair Stations . | . . . Recycling Units . | . . . Scanalyzers . | . . . Garrison Access . | . . . Data Cores Recovered 1 | . 1 . Used 1 | . 1 . Hacking Detections 9 | . 6 3 Full Trace Events 6 | . 3 3 Feedback Events 1 | . . 1 Corruption 1 | . . 1 Feedback Blocked . | . . . Robot Schematics Acquired . | . . . Robots Built . | . . . Authchips . | . . . Time . | . . . Total Robot Build Rating . | . . . Part Schematics Acquired . | . . . Parts Built . | . . . Authchips . | . . . Time . | . . . Total Part Build Rating . | . . . Parts Repaired . | . . . Time . | . . . Parts Recycled . | . . . Recycled Matter . | . . . Retrieved Matter . | . . . Retrieved Components . | . . . Parts Scanalyzed . | . . . Part Schematics Acquired . | . . . Parts Damaged . | . . . Bothacking | -11 -10 -9 ------------ Run | Yrd Mat Mat Used RIF Installer . | . . . Robots Hacked . | . . . Non-combat . | . . . Combat . | . . . Robot Hacks Applied . | . . . Relay Couplers Released . | . . . Fabnet Peak Effective % . | . . . Robots Rewired . | . . . Allies Hacked . | . . . Hacks Repelled . | . . . Allies | -11 -10 -9 -------- Run | Yrd Mat Mat Total Allies . | . . . Largest Group . | . . . Highest-Rated Group . | . . . Highest-Rated Ally . | . . . Total Orders . | . . . Ally Attacks . | . . . Total Damage . | . . . Kills . | . . . Allies Corrupted . | . . . Allies Melted . | . . . Intel | -11 -10 -9 ------- Run | Yrd Mat Mat Robot Analysis Total . | . . . Derelict Logs Recovered . | . . . Drone Launches . | . . . Drone Recoveries . | . . . Exploration | -11 -10 -9 ------------- Run | Yrd Mat Mat Turns Passed 1312 | 185 812 315 Spaces Moved 1622 | 138 1199 285 Core 17 | 17 . . Treads . | . . . Legs 400 | 51 196 153 Wheels 70 | 70 . . Hover . | . . . Flight 1135 | . 1003 132 Fastest Speed 37 | 50 37 37 Average Speed 60 | 91 50 86 Slowest Speed 130 | 120 120 130 Overloaded Moves . | . . . Propulsion Burnouts . | . . . Robots Hopped 10 | . 10 . Cave-ins Triggered 1 | . . 1 Exploration Rate (%) 43 | 6 98 27 Regions Visited 2 Branch Regions . Pre-discovered Areas . | . . . Known Exits Taken . | . . . Unknown Exits Taken 2 | 1 1 . Scrap Searched . | . . . Spaces Dug 5 | . 1 4 Terrain Destroyed 46 | 2 1 43 Melee . | . . . Projectile 7 | 2 1 4 AOE 39 | . . 39 Terrain Rammed . | . . . Walls Destroyed . | . . . Machines Disabled . | . . . Actions | -11 -10 -9 --------- Run | Yrd Mat Mat Total 1817 | 169 1319 329 Wait 40 | . 40 . Move 1600 | 137 1178 285 Hop 10 | . 10 . Pick Up 30 | 10 14 6 Fast Attach 2 | . 2 . Attach 22 | 6 6 10 Detach 6 | . 3 3 Swap 14 | 3 9 2 Drop 20 | 3 12 5 Fire 73 | 10 45 18 Melee . | . . . Ram . | . . . Kick . | . . . Crush . | . . . Escape Stasis . | . . . Rewire . | . . . Trap . | . . . Miscellaneous . | . . . Route ------- -11/Scrapyard -10/Materials (discovered 5 exits: *Mat x3 / [*Min x2]) -9/Materials (discovered 1 exit: *Min) History --------- Turn | Location | Event 2 | -11/Scrapyard | Met Revision 17 44 | -11/Scrapyard | Discovered new exit (range 8) 186 | -11/Scrapyard | Entered Materials 518 | -10/Materials | Discovered new exit (range 7) 553 | -10/Materials | Discovered new exit (range 3) 608 | -10/Materials | Discovered new exit (range 5) 644 | -10/Materials | Core integrity fell below 50% 696 | -10/Materials | Discovered new exit (range 11) 790 | -10/Materials | Build established: Scavenger-Mutant 833 | -10/Materials | Discovered new exit (range 16) 998 | -10/Materials | Entered another Materials area 998 | -9/Materials | Evolved 2 slots: Propulsion x1, Utility x1 1011 | -9/Materials | Identified exit to Mines 1139 | -9/Materials | Crushed by falling debris 1170 | -9/Materials | Lost 3 parts (2u1w) 1238 | -9/Materials | Central database locked down 1313 | -9/Materials | Self-destructed Last Messages --------------- access denied. Feedback: System corruption (+1%). 01238_ ALERT: Suspicious activity at Terminal M001. Dispatching Investigation squad. 01241_ K-01 Serf collects debris. 01252_ U-05 Engineer lays Concrete. 01256_ K-01 Serf destroyed. 01257_ K-01 Serf collects debris. 01261_ S-10 Pest destroyed. 01263_ W-16 Scout destroyed. 01265_ Destroyed Flight Unit. 01268_ Lgt. Armor Plating destroyed. 01270_ Chain reaction triggered in Lgt. Ion Engine. 01270_ Flight Unit fried. 01270_ S-10 Pest destroyed. 01274_ K-01 Serf collects debris. 01276_ S-10 Pest destroyed. 01291_ System corrupted: Substantial component data lost. Map ----- +----------------------------------------------------+ | ?????????????????? #????????????????????????????? | | ?? ????????????? #????????????????????????????? | | ?# ???????????? #????????????????????????????? | | ?# ???????????? #????????????????????????????? | | ?# ???????????? #????????? ?????????????????? | | ?# #??????????? #????????? ???????????????? | | ?# #??????????? ?########? #??????????????? | | ?# #????########/## ## #??????????????? | | ?# #????# #??????????????? | | ?# #????+ > #????? ????????? | | ?# #????# "" ? #???? ????????? | | ## ##???# "T #???????# #??? ?????????? | | # !##### "" #???????# #?? #?????????? | | # #???????# #?? #?????????? | | # ! ######### #? +?????????? | | # % ! ## #?????????? | | # #######+## #?????????? | | ### ###? # *% %[ #?????????? | | ??# #??? [[[# #?????????? | | ###/#### [[[# =[ = #?????????? | | ## [[[# %= %!##+#???????????? | | [ # # ###########"%% #??????????????? | | """ # # # #"[ #??????????????? | | """" # %]# a/ !!= ## #??????????????? | | """" # # # != ## #??????????????? | | """" # # # !@ = ## #??????????????? | | """ # % # ############ #??????????????? | | # % # ############ #??????????????? | | # ####+# #####??????????? | | ######## # # ???? | | # # ## # #########??????? | | + """ ##### ################ #??????????????? | | # "Y # #???# #####??????????# #??????????????? | | # """ # #???# !!#??????????# #??????????????? | | + # #???# ! #??????????# #??????????????? | | # # #???# ]]#??????????# #??????????????? | | ######"" "#### ] #??????????? #??????????????? | | #??????????? #??????????????? | | ######"""####### #??????????? #??????????????? | | #???????????#####??????????? #??????????????? | | #??????????????????????????? +??????????????? | | #??????????????????????????? #??????????????? | | #??????????????????????????? #??????????????? | | ####??????????????????????????????#??????????????? | | ?????????????????????????????????????????????????? | | ?????????????????????????????????????????????????? | | ?????????????????????????????????????????????????? | | ?????????????????????????????????????????????????? | | ?????????????????????????????????????????????????? | | ?????????????????????????????????????????????????? | +----------------------------------------------------+ Best States ------------- Heat Dissipation 28 Energy Generation 10 Energy Capacity 250 Matter Stores 300 Matter Capacity 300 Sight Range 16 Terrain Scan Density 10 ECM Strength 1 Armor Coverage 150 Core Shielding 20 Utility Shielding 66 Evasion (%) 62 Offensive Hacking 10 Item Schematics ----------------- None Robot Schematics ------------------ None Fabricated ------------ Nothing Alien Tech Used ----------------- None Achievements -------------- Dynamic Key Unlikely Earthworm Challenges ------------ None Game ------ Seed ActiveNodeFacilitator Manual? 0 Play Time 00:51:57 Cumulative 2.5 hours Start 2024.07.07 @ 17:33:37 End 2024.07.07 @ 19:58:02 Sessions 3 Manual Loads 0 Difficulty Rogue Special Mode None Game No. 2 Rogue 2 Adventurer 0 Explorer 0 Win Type - Total 0 Types 0/0/0/0/0/0/0/0/0 Lore% 4 Gallery% 4 Achievement% 3 Wizard Run 0 Options --------- Layout 1 ASCII 0 Keyboard 0 Movement Numpad Keybinds 0 Fullscreen 2 Font 48/Tamsyn Map View 50x35 Zoom Use 0% Tactical HUD 1 Map Filters NONE Filters NONE Steam 1 RUN: 201494e4-6011-4904-ae49-b7ef3818a088